bitfinex/quotes_SOLUSD_20250626
["timestamp","ask_amount","ask_price","bid_price","bid_amount"]
[1750946981832,24.67743072,141.83,141.74,0.14216157]
[1750946982814,24.67743072,141.83,141.73,6.76]
[1750946983135,0.14216157,141.81,141.72,0.02]
[1750946983545,36.3293293,141.81,141.72,0.02]
[1750946983728,41.4439023,141.81,141.72,0.02]
[1750946984915,0.14216157,141.79,141.72,0.02]
[1750946985316,5.25673457,141.79,141.72,0.02]
[1750946987038,24.68613344,141.78,141.72,0.02]
[1750946990920,59.95203836,141.78,141.72,0.02]
[1750946991130,5.114573,141.77,141.72,0.02]
[1750946991818,6.5693293,141.76,141.72,0.02]
[1750946992222,24.69135802,141.75,141.72,0.02]
[1750946994920,17.6366843,141.75,141.72,0.02]
[1750946999160,0.14216157,141.74,141.72,0.02]
[1750946999446,6.5693293,141.74,141.72,0.02]
[1750947000037,7.1978308,141.73,141.72,0.02]
[1750947000458,13.48283696,141.73,141.72,0.02]
[1750947000943,7.05566923,141.73,141.72,0.02]
[1750947002143,7.05517144,141.74,141.72,0.02]
[1750947002733,13.48233917,141.74,141.72,0.02]
[1750947003537,7.05517144,141.74,141.72,0.02]
[1750947004255,13.48233917,141.74,141.72,0.02]
[1750947004831,7.05517144,141.74,141.72,0.02]
[1750947007158,18.59691217,141.74,141.72,0.02]
[1750947007357,5.114573,141.73,141.72,0.02]
[1750947008352,12.17024223,141.73,141.72,0.02]
[1750947008552,18.59740996,141.73,141.72,0.02]
[1750947009236,12.17024223,141.73,141.72,0.02]
[1750947009439,12.17024223,141.73,141.7,0.02]
[1750947009633,11.5875715,141.72,141.7,0.02]
[1750947009834,5.114573,141.71,141.7,0.02]
[1750947010231,12.17123802,141.71,141.7,0.02]
[1750947010437,18.64423652,141.71,141.7,0.02]
[1750947010753,12.17123802,141.71,141.7,0.02]
[1750947010955,12.17123802,141.71,141.66,14.8213]
[1750947011163,11.5980319,141.7,141.66,14.8213]
[1750947011476,11.5980319,141.69,141.66,0.02]
[1750947011770,6.4834589,141.67,141.66,0.02]
[1750947011957,11.5980319,141.67,141.66,0.02]
[1750947012466,18.65668934,141.67,141.66,0.02]
[1750947014064,12.17323044,141.67,141.66,0.02]
[1750947015156,5.114573,141.67,141.66,0.02]
[1750947015473,7.05865744,141.67,141.66,0.02]
[1750947016055,12.17323044,141.67,141.66,0.02]
[1750947016344,7.05865744,141.67,141.66,0.02]
[1750947016554,12.31539201,141.67,141.66,0.02]
[1750947016861,20.91407648,141.67,141.66,0.02]
[1750947017063,29.96203561,141.67,141.58,18.64964886]
[1750947017364,29.96203561,141.67,141.57,7.9975]
[1750947017365,6.46392504,141.64,141.57,7.9975]
[1750947017667,5.114573,141.65,141.57,7.9975]
[1750947017848,5.114573,141.65,141.58,18.79181043]
[1750947018233,5.114573,141.66,141.58,18.79181043]
[1750947018443,31.16922608,141.67,141.58,18.79181043]
[1750947018641,36.28379908,141.67,141.58,18.79181043]
[1750947018850,13.52258248,141.67,141.58,18.79181043]
[1750947019065,7.05865744,141.67,141.58,18.79181043]
[1750947019482,24.70530104,141.67,141.58,18.79181043]
[1750947019641,7.05865744,141.67,141.58,18.79181043]
[1750947020038,7.05831356,141.68,141.58,32.70110487]
[1750947020258,7.05831356,141.68,141.6,18.79181043]
[1750947020464,7.05831356,141.68,141.62,0.14216157]
[1750947020870,7.05766109,141.69,141.62,0.14216157]
[1750947021179,7.05766109,141.69,141.64,18.64964886]
[1750947022755,24.6995395,141.71,141.64,18.64964886]
[1750947023568,36.27803754,141.71,141.64,18.64964886]
[1750947023789,6.46392504,141.7,141.65,6.5237]
[1750947024087,24.6995395,141.71,141.65,6.5237]
[1750947024292,31.16346454,141.71,141.65,6.5237]
[1750947024973,36.27803754,141.71,141.65,6.5237]
[1750947025578,0.04,141.72,141.66,18.64964886]
[1750947025579,11.61849804,141.72,141.66,18.64964886]
[1750947025773,7.09634927,141.72,141.67,0.14216157]
[1750947026133,7.09634927,141.72,141.66,18.64964886]
[1750947026470,31.20069203,141.72,141.65,6.5237]
[1750947026674,11.57849804,141.71,141.65,6.5237]
[1750947026905,7.05716302,141.7,141.65,6.5237]
[1750947027082,7.05716302,141.7,141.66,18.64964886]
[1750947028010,7.05716302,141.7,141.65,6.5237]
[1750947028223,12.17173602,141.7,141.65,6.5237]
[1750947028998,12.17173602,141.7,141.66,18.64964886]
[1750947029215,7.05716302,141.7,141.66,18.64964886]
[1750947032212,24.70007057,141.7,141.65,6.5237]
[1750947032421,36.27856861,141.7,141.64,18.64964886]
[1750947032581,5.114573,141.69,141.64,18.64964886]
[1750947033519,7.05815923,141.68,141.64,18.64964886]
[1750947034020,5.114573,141.67,141.61,6.74]
[1750947034324,5.114573,141.66,141.61,6.74]
[1750947035530,7.05915572,141.66,141.62,18.64964886]
[1750947037609,7.05865744,141.67,141.62,18.64964886]
[1750947037998,29.81987404,141.67,141.62,18.64964886]
[1750947038202,29.81987404,141.67,141.61,6.74]
[1750947038394,36.28379908,141.67,141.61,6.74]
[1750947038588,31.16922608,141.67,141.61,6.74]
[1750947038812,5.114573,141.66,141.61,6.74]
[1750947039478,24.70878926,141.65,141.61,6.74]
[1750947039683,29.82336226,141.65,141.61,6.74]
[1750947039903,29.82336226,141.65,141.58,6.0141]
[1750947040119,5.114573,141.64,141.57,18.64964886]
[1750947040276,11.57849804,141.64,141.57,18.64964886]
[1750947040478,5.114573,141.64,141.57,18.64964886]
[1750947040696,31.37456226,141.65,141.57,18.64964886]
[1750947040898,26.25998926,141.65,141.57,18.64964886]
[1750947042515,26.25998926,141.65,141.58,0.14216157]
[1750947043022,31.37456226,141.65,141.58,0.14216157]
[1750947043224,26.25998926,141.65,141.58,0.14216157]
[1750947044115,31.37456226,141.65,141.58,0.14216157]
[1750947046225,26.25998926,141.65,141.58,0.14216157]
[1750947046526,7.05965407,141.65,141.58,0.14216157]
[1750947046732,7.05965407,141.65,141.58,10.42588923]
[1750947047231,29.22532485,141.67,141.62,18.64964886]
[1750947047232,5.114573,141.66,141.62,18.64964886]
[1750947047417,7.05865744,141.67,141.63,6.92]
[1750947047901,7.0583713,141.68,141.63,6.92]
[1750947048498,7.0583713,141.68,141.64,18.64964886]
[1750947050037,24.70376938,141.68,141.64,18.64964886]
[1750947050539,17.64539808,141.68,141.64,18.64964886]
[1750947051001,17.64539808,141.68,141.63,6.92]
[1750947051202,22.75997108,141.68,141.63,6.92]
[1750947051626,5.114573,141.67,141.63,6.92]
[1750947052437,7.05915572,141.66,141.63,6.92]
[1750947053218,12.17372872,141.66,141.63,6.92]
[1750947053421,7.05915572,141.66,141.63,6.92]
[1750947054430,7.05915572,141.66,141.64,18.64964886]
[1750947054629,5.114573,141.67,141.64,18.64964886]
[1750947054630,12.17332217,141.67,141.64,18.64964886]
[1750947054949,7.05837969,141.68,141.64,18.64964886]
[1750947059333,29.81835077,141.68,141.63,6.92]
[1750947059517,5.114573,141.67,141.63,6.92]
[1750947060832,5.114573,141.66,141.63,6.92]
[1750947061314,7.05915572,141.66,141.63,6.92]
[1750947062015,12.17344814,141.67,141.64,18.64964886]
[1750947062215,7.05887514,141.67,141.64,18.64964886]
[1750947062421,12.17344814,141.67,141.64,18.64964886]
[1750947062618,7.05887514,141.67,141.64,18.64964886]
[1750947063730,12.17295039,141.68,141.64,18.64964886]
[1750947064123,7.05837739,141.68,141.64,18.64964886]
[1750947064324,12.17295039,141.68,141.64,18.64964886]
[1750947064624,7.05837739,141.68,141.64,18.64964886]
[1750947064830,12.17295039,141.68,141.64,18.64964886]
[1750947065038,7.05837739,141.68,141.64,18.64964886]
[1750947065641,5.114573,141.69,141.65,0.14216157]
[1750947065845,12.17143061,141.71,141.66,18.64964886]
[1750947066714,7.05685761,141.71,141.66,18.64964886]
[1750947067428,5.114573,141.7,141.66,18.64964886]
[1750947067956,7.05766109,141.69,141.64,18.64964886]
[1750947068161,12.17223409,141.69,141.64,18.64964886]
[1750947068840,7.05766109,141.69,141.64,18.64964886]
[1750947069040,12.17223409,141.69,141.64,18.64964886]
[1750947069855,29.81638681,141.69,141.64,18.64964886]
[1750947070550,5.114573,141.68,141.64,18.64964886]
[1750947071044,7.05766109,141.69,141.64,18.64964886]
[1750947071749,12.17223409,141.69,141.64,18.64964886]
[1750947071931,7.05766109,141.69,141.64,18.64964886]
[1750947072250,12.17223409,141.69,141.64,18.64964886]
[1750947072447,7.05766109,141.69,141.64,18.64964886]
[1750947072748,5.114573,141.68,141.64,18.64964886]
[1750947072949,12.17223409,141.69,141.64,18.64964886]
[1750947073154,7.05766109,141.69,141.64,18.64964886]
[1750947073319,7.05766109,141.69,141.65,0.14216157]
[1750947074422,12.17190738,141.7,141.65,0.14216157]
[1750947074747,7.05733438,141.7,141.65,0.14216157]
[1750947075249,12.17190738,141.7,141.65,0.14216157]
[1750947075447,7.05733438,141.7,141.65,0.14216157]
[1750947076746,12.17144833,141.71,141.65,0.14216157]
[1750947076954,7.05687533,141.71,141.65,0.14216157]
[1750947078348,12.17144833,141.71,141.65,0.14216157]
[1750947080341,31.38761088,141.71,141.61,7.8125]
[1750947080551,11.57849804,141.7,141.62,18.64964886]
[1750947080759,11.57849804,141.69,141.63,0.14216157]
[1750947080950,11.57849804,141.7,141.63,0.14216157]
[1750947081138,5.114573,141.69,141.63,0.14216157]
[1750947082234,5.114573,141.69,141.62,18.64964886]
[1750947082432,7.05815923,141.68,141.62,18.64964886]
[1750947082731,29.81813031,141.68,141.62,18.64964886]
[1750947083261,5.114573,141.67,141.62,18.64964886]
[1750947083765,5.114573,141.67,141.61,6.82]
[1750947084436,7.05965407,141.65,141.61,6.82]
[1750947084636,12.17422707,141.65,141.61,6.82]
[1750947087741,7.05965407,141.65,141.61,6.82]
[1750947088446,12.17422707,141.65,141.61,6.82]
[1750947088650,5.114573,141.65,141.62,18.64964886]
[1750947088964,7.05978858,141.65,141.62,18.64964886]
[1750947089152,7.05978858,141.65,141.61,6.82]
[1750947089557,12.17436158,141.65,141.61,6.82]
[1750947091762,7.05978858,141.65,141.61,6.82]
[1750947091943,5.114573,141.65,141.62,18.64964886]
[1750947092143,7.0593746,141.66,141.62,18.64964886]
[1750947093061,12.17345486,141.67,141.62,18.64964886]
[1750947093235,5.114573,141.67,141.63,0.14216157]
[1750947093657,7.05841324,141.68,141.63,0.14216157]
[1750947093842,12.17298624,141.68,141.63,0.14216157]
[1750947094152,7.05789702,141.69,141.63,0.14216157]
[1750947094464,5.114573,141.68,141.62,18.64964886]
[1750947094664,31.16597478,141.69,141.62,18.64964886]
[1750947094665,5.114573,141.67,141.63,0.14216157]
[1750947094969,5.114573,141.68,141.65,0.14216157]
[1750947095267,5.114573,141.69,141.65,0.14216157]
[1750947095768,12.17235457,141.69,141.65,0.14216157]
[1750947095972,7.05778157,141.69,141.65,0.14216157]
[1750947096163,12.17235457,141.69,141.65,0.14216157]
[1750947096337,7.05778157,141.69,141.65,0.14216157]
[1750947096541,12.17235457,141.69,141.64,18.64964886]
[1750947096890,5.114573,141.68,141.64,18.64964886]
[1750947097062,7.05865744,141.67,141.64,18.64964886]
[1750947097236,12.17323044,141.67,141.64,18.64964886]
[1750947097438,7.05865744,141.67,141.61,6.96216157]
[1750947097651,12.17323044,141.67,141.62,18.64964886]
[1750947097861,7.05865744,141.67,141.62,18.64964886]
[1750947098066,12.17323044,141.67,141.62,18.64964886]
[1750947098250,5.114573,141.66,141.62,18.64964886]
[1750947098761,12.17323044,141.67,141.62,18.64964886]
[1750947099068,7.05865744,141.67,141.63,0.14216157]
[1750947099271,12.17323044,141.67,141.63,0.14216157]
[1750947099462,7.05865744,141.67,141.63,0.14216157]
[1750947099645,12.17323044,141.67,141.62,18.64964886]
[1750947099844,7.05865744,141.67,141.62,18.64964886]
[1750947100143,12.17323044,141.67,141.62,18.64964886]
[1750947100343,7.05865744,141.67,141.62,18.64964886]
[1750947100565,12.17323044,141.67,141.62,18.64964886]
[1750947100871,5.114573,141.66,141.62,18.64964886]
[1750947101164,7.05965407,141.65,141.62,18.64964886]
[1750947101346,12.17422707,141.65,141.61,6.82]
[1750947102065,29.82336226,141.65,141.61,6.82]
[1750947102365,5.114573,141.64,141.59,18.64964886]
[1750947102569,5.114573,141.63,141.59,18.64964886]
[1750947102766,11.57849804,141.64,141.59,18.64964886]
[1750947102972,5.114573,141.63,141.59,18.64964886]
[1750947103173,7.06114955,141.62,141.59,18.64964886]
[1750947103566,12.17572255,141.62,141.59,18.64964886]
[1750947103769,7.06114955,141.62,141.59,18.64964886]
[1750947104072,12.17572255,141.62,141.59,18.64964886]
[1750947104576,7.06114955,141.62,141.59,18.64964886]
[1750947104947,5.114573,141.63,141.6,18.64964886]
[1750947105161,11.57849804,141.65,141.59,0.14216157]
[1750947105462,5.114573,141.66,141.59,0.14216157]
[1750947105668,7.05985992,141.65,141.6,0.14216157]
[1750947107872,7.05985992,141.65,141.61,18.64964886]
[1750947109592,12.17443292,141.65,141.6,6.78]
[1750947109889,5.114573,141.64,141.6,6.78]
[1750947110265,5.114573,141.63,141.58,18.64964886]
[1750947110470,6.667473,141.62,141.57,18.66964886]
[1750947111080,1.5529,141.62,141.57,18.66964886]
[1750947111580,7.06164818,141.61,141.57,18.66964886]
[1750947112461,7.06132359,141.62,141.57,18.66964886]
[1750947112686,7.0608513,141.63,141.58,0.14216157]
[1750947116294,7.06015249,141.64,141.58,0.14216157]
[1750947118773,7.06015249,141.64,141.6,18.64964886]
[1750947118977,24.71053373,141.64,141.59,6.8]
[1750947119887,29.89676568,141.64,141.59,6.8]
[1750947121977,29.89676568,141.64,141.59,5.3]
[1750947122572,29.89676568,141.64,141.6,18.64964886]
[1750947122573,5.18623195,141.63,141.6,18.64964886]
[1750947122790,12.24638444,141.64,141.6,18.64964886]
[1750947123374,5.18623195,141.64,141.6,18.64964886]
[1750947123599,12.24540742,141.66,141.61,0.14216157]
[1750947123797,7.05917547,141.66,141.61,0.14216157]
[1750947124100,12.24540742,141.66,141.6,18.64964886]
[1750947124398,29.89329673,141.66,141.6,18.64964886]
[1750947124578,7.06015249,141.64,141.6,18.64964886]
[1750947124977,12.24638444,141.64,141.6,18.64964886]
[1750947125305,7.06015249,141.64,141.6,18.64964886]
[1750947125483,12.24638444,141.64,141.6,18.64964886]
[1750947125683,7.06015249,141.64,141.6,18.64964886]
[1750947125890,12.24638444,141.64,141.6,18.64964886]
[1750947126179,5.18623195,141.65,141.61,0.14216157]
[1750947126492,7.05915572,141.66,141.6,18.64964886]
[1750947126808,5.18623195,141.65,141.6,18.64964886]
[1750947128484,12.24638444,141.64,141.6,18.64964886]
[1750947128686,7.06015249,141.64,141.6,18.64964886]
[1750947128895,12.24638444,141.64,141.6,18.64964886]
[1750947129783,5.18623195,141.63,141.6,18.64964886]
[1750947131302,12.24638444,141.64,141.6,18.64964886]
[1750947131505,5.18623195,141.63,141.6,18.64964886]
[1750947131806,12.2473815,141.62,141.6,18.64964886]
[1750947131995,7.06114955,141.62,141.6,18.64964886]
[1750947132184,12.2473815,141.62,141.6,18.64964886]
[1750947132384,7.06114955,141.62,141.6,18.64964886]
[1750947132580,12.2473815,141.62,141.6,18.64964886]
[1750947132802,7.06114955,141.62,141.6,18.64964886]
[1750947132991,12.2473815,141.62,141.6,18.64964886]
[1750947133193,7.06114955,141.62,141.6,18.64964886]
[1750947133395,12.2473815,141.62,141.6,18.64964886]
[1750947133702,7.06114955,141.62,141.6,18.64964886]
[1750947133918,12.2473815,141.62,141.59,5.3]
[1750947134079,5.18623195,141.61,141.59,5.3]
[1750947136104,7.06214689,141.6,141.59,5.3]
[1750947136297,7.06214689,141.6,141.57,0.02]
[1750947136815,12.24837884,141.6,141.57,0.02]
[1750947136985,12.24837884,141.6,141.57,18.66964886]
[1750947137405,12.24837884,141.6,141.57,0.02]
[1750947139083,29.90374607,141.6,141.57,0.02]
[1750947139685,5.18623195,141.59,141.57,0.02]
[1750947140085,29.90374607,141.6,141.57,0.02]
[1750947140288,12.24837884,141.6,141.57,0.02]
[1750947141714,5.18623195,141.6,141.57,18.66964886]
[1750947141943,1.5294,141.63,141.57,18.66964886]
[1750947142091,7.06148966,141.62,141.57,18.66964886]
[1750947142415,12.24772161,141.62,141.57,18.66964886]
[1750947143820,5.18623195,141.61,141.57,18.66964886]
[1750947143986,5.18623195,141.61,141.57,0.02]
[1750947144395,12.24837884,141.6,141.57,0.02]
[1750947144596,7.06214689,141.6,141.57,0.02]
[1750947144809,12.24837884,141.6,141.57,0.02]
[1750947145006,5.18623195,141.59,141.57,0.02]
[1750947145204,12.24837884,141.6,141.57,0.02]
[1750947145716,5.18623195,141.59,141.57,0.02]
[1750947146096,7.06214689,141.6,141.57,0.02]
[1750947146429,12.24837884,141.6,141.57,0.02]
[1750947146808,5.18623195,141.59,141.57,0.02]
[1750947148304,5.18623195,141.58,141.57,0.02]
[1750947148624,20.3531664,141.58,141.57,0.02]
[1750947148822,13.87037646,141.58,141.57,0.02]
[1750947150111,6.80723195,141.58,141.57,0.02]
[1750947150312,7.06284321,141.59,141.57,0.02]
[1750947150516,7.06214689,141.6,141.57,0.02]
[1750947151024,11.66902189,141.59,141.57,0.02]
[1750947151226,5.18623195,141.58,141.57,0.02]
[1750947152522,20.3003664,141.58,141.57,0.02]
[1750947153102,15.11413445,141.58,141.57,0.02]
[1750947153426,8.63134451,141.58,141.57,0.02]
[1750947154005,7.06314451,141.58,141.57,0.02]
[1750947154208,12.24902811,141.59,141.57,0.02]
[1750947154427,7.06279616,141.59,141.57,0.02]
[1750947154612,7.06164818,141.61,141.57,0.02]
[1750947156524,12.24788013,141.61,141.57,0.02]
[1750947156728,24.71576865,141.61,141.57,0.02]
[1750947157729,29.9020006,141.61,141.57,0.02]
[1750947158310,36.38479054,141.61,141.57,0.02]
[1750947158733,5.18623195,141.6,141.57,0.02]
[1750947159428,5.18623195,141.59,141.57,0.02]
[1750947160910,6.48278994,141.6,141.57,0.02]
[1750947160911,17.65536723,141.6,141.57,0.02]
[1750947161114,5.18202611,141.59,141.57,0.02]
[1750947161912,29.31492598,141.6,141.57,0.02]
[1750947163204,36.37707287,141.6,141.57,0.02]
[1750947163407,31.19504676,141.6,141.57,0.02]
[1750947163603,36.37707287,141.6,141.57,0.02]
[1750947163810,31.19504676,141.6,141.57,0.02]
[1750947164118,36.37707287,141.6,141.57,0.02]
[1750947164322,31.19504676,141.6,141.57,0.02]
[1750947164524,36.37707287,141.6,141.57,0.02]
[1750947164720,31.19504676,141.6,141.57,0.02]
[1750947164922,36.37707287,141.6,141.57,0.02]
[1750947165123,31.19504676,141.6,141.57,0.02]
[1750947165327,12.244173,141.6,141.57,0.02]
[1750947165628,7.06214689,141.6,141.57,0.02]
[1750947167636,7.06164818,141.61,141.57,0.02]
[1750947167816,7.06164818,141.61,141.57,18.66964886]
[1750947168736,5.18202611,141.63,141.57,20.28064886]
[1750947169034,5.18202611,141.65,141.62,0.14216157]
[1750947169214,0.04,141.66,141.64,0.14216157]
[1750947169740,0.04,141.66,141.63,25.44964886]
[1750947170040,0.04,141.66,141.65,18.64964886]
[1750947170234,0.04,141.66,141.65,24.98791043]
[1750947170720,0.04,141.66,141.65,31.84385744]
[1750947171609,0.04,141.66,141.65,38.90351151]
[1750947172735,0.04,141.72,141.66,0.89586157]
[1750947172937,0.04,141.72,141.68,0.14216157]
[1750947173243,0.04,141.72,141.7,18.64964886]
[1750947174218,0.04,141.72,141.71,0.14216157]
[1750947174633,0.04,141.72,141.71,25.08701043]
[1750947175818,0.04,141.72,141.71,31.94295744]
[1750947176521,0.04,141.72,141.71,25.08701043]
[1750947176833,0.04,141.72,141.71,31.94295744]
[1750947177748,0.04,141.74,141.73,0.14216157]
[1750947178041,0.04,141.74,141.73,56.96702436]
[1750947178251,0.04,141.74,141.73,67.42088118]
[1750947178963,0.04,141.77,141.76,18.79181043]
[1750947179121,0.04,141.77,141.76,25.59181043]
[1750947179321,0.04,141.77,141.76,35.84594503]
[1750947179521,0.04,141.77,141.76,25.59181043]
[1750947179721,0.04,141.77,141.76,35.84594503]
[1750947180239,0.04,141.77,141.73,0.7137]
[1750947180424,0.04,141.77,141.76,6.8]
[1750947183852,0.04,141.77,141.76,26.29722803]
[1750947184332,0.04,141.77,141.76,25.59181043]
[1750947187735,0.04,141.77,141.76,37.50314503]
[1750947187933,0.04,141.77,141.76,44.5573211]
[1750947188146,0.04,141.77,141.76,45.54706184]
[1750947188444,0.04,141.77,141.76,51.71206184]
[1750947188654,0.04,141.77,141.76,43.66814503]
[1750947189040,0.04,141.77,141.76,33.41401043]
[1750947189240,0.04,141.77,141.76,18.79181043]
[1750947189427,0.04,141.77,141.76,55.56964886]
[1750947189636,0.04,141.77,141.76,55.71181043]
[1750947190358,0.04,141.77,141.76,55.56964886]
[1750947190653,0.04,141.77,141.76,55.71181043]
[1750947191352,0.04,141.77,141.76,65.96594503]
[1750947193153,0.04,141.77,141.76,73.0201211]
[1750947193732,0.04,141.77,141.76,74.00986184]
[1750947194055,0.04,141.82,141.79,18.79181043]
[1750947194353,0.04,141.82,141.78,8.2061]
[1750947194354,0.04,141.82,141.81,18.79181043]
[1750947195544,0.04,141.82,141.81,29.04594503]
[1750947195947,0.04,141.82,141.81,18.79181043]
[1750947196562,0.04,141.82,141.8,18.79181043]
[1750947196744,0.04,141.82,141.81,55.89181043]
[1750947196949,0.04,141.82,141.81,55.87181043]
[1750947199566,0.04,141.82,141.81,73.1776339]
[1750947200143,0.04,141.82,141.81,83.46195704]
[1750947200665,0.04,141.84,141.82,29.07613357]
[1750947200867,0.04,141.84,141.83,70.09533761]
[1750947201088,0.04,141.84,141.83,76.39173761]
[1750947201247,0.04,141.84,141.83,78.01823761]
[1750947201869,0.04,141.84,141.83,85.0689321]
[1750947202360,0.04,141.84,141.83,74.8147975]
[1750947202661,0.04,141.84,141.83,85.0689321]
[1750947203769,0.04,141.84,141.83,74.8147975]
[1750947203982,0.04,141.84,141.83,85.0689321]
[1750947205369,15.02273125,141.95,141.86,18.64964886]
[1750947205574,1.5826,141.95,141.9,18.64964886]
[1750947205887,8.62749636,141.95,141.92,18.64964886]
[1750947206187,8.62749636,141.95,141.92,48.64964886]
[1750947206474,1.5826,141.95,141.92,48.64964886]
[1750947207077,1.5826,141.95,141.93,0.14216157]
[1750947207389,0.04,141.96,141.95,18.64964886]
[1750947208286,0.04,141.96,141.95,18.79181043]
[1750947210559,0.04,141.96,141.95,0.14216157]
[1750947210878,0.04,141.96,141.95,55.56964886]
[1750947215377,0.04,141.96,141.95,36.92]
[1750947215551,0.04,141.96,141.95,6.96]
[1750947215751,0.04,141.96,141.95,25.75181043]
[1750947216858,0.04,141.96,141.95,36.00594503]
[1750947217056,0.04,141.96,141.95,25.75181043]
[1750947217457,0.04,141.96,141.95,36.00594503]
[1750947217876,0.04,141.96,141.95,43.05067909]
[1750947218186,0.04,141.96,141.95,43.33500223]
[1750947218480,0.04,142.02,141.96,29.07613357]
[1750947218781,0.04,142.02,141.98,29.04594503]
[1750947218982,0.04,142.02,142.0,18.79181043]
[1750947219180,0.04,142.02,142.01,18.79181043]
[1750947219379,0.04,142.02,142.01,18.64964886]
[1750947219580,0.04,142.02,141.99,0.14216157]
[1750947219581,0.04,142.02,141.99,18.64964886]
[1750947219778,0.04,142.02,142.0,18.79181043]
[1750947220675,0.04,142.05,142.02,0.14216157]
[1750947220877,0.04,142.05,142.02,25.75181043]
[1750947221071,0.04,142.05,142.03,18.64964886]
[1750947222364,0.04,142.05,142.03,18.79181043]
[1750947222959,0.04,142.05,142.03,49.15181043]
[1750947226881,0.04,142.05,142.03,18.64964886]
[1750947227581,0.04,142.05,142.02,6.96]
[1750947227781,0.04,142.05,142.03,18.64964886]
[1750947231005,0.04,142.05,142.02,6.96]
[1750947232087,1.5548,142.04,142.02,6.96]
[1750947232296,1.5548,142.04,141.98,18.64964886]
[1750947232869,7.04076603,142.03,141.98,18.64964886]
[1750947233292,1.5548,142.04,141.98,18.64964886]
[1750947233499,1.5548,142.04,141.99,0.14216157]
[1750947233783,1.5548,142.04,142.0,18.64964886]
[1750947234572,8.5950718,142.04,142.0,18.64964886]
[1750947236079,1.5548,142.04,142.0,18.64964886]
[1750947236468,8.59512479,142.04,142.0,18.64964886]
[1750947239791,1.5548,142.04,142.0,18.64964886]
[1750947240302,1.5548,142.04,142.01,0.14216157]
[1750947240479,0.04,142.05,142.03,18.79181043]
[1750947240672,0.04,142.05,142.04,25.89181043]
[1750947242882,0.04,142.05,142.04,36.10758785]
[1750947243197,0.04,142.05,142.04,25.89181043]
[1750947245004,0.04,142.05,142.04,25.74964886]
[1750947248120,1.6451,142.05,142.04,18.64964886]
[1750947248295,1.6451,142.05,142.04,25.74964886]
[1750947248887,1.6451,142.05,142.04,7.1]
[1750947249303,6.74530612,142.05,142.04,7.1]
[1750947249503,1.6451,142.05,142.04,7.1]
[1750947249709,6.74530612,142.05,142.04,7.1]
[1750947250011,1.6451,142.05,142.04,7.1]
[1750947250217,6.74530612,142.05,142.04,7.1]
[1750947251290,5.14020612,142.05,142.04,25.74964886]
[1750947251503,0.04,142.05,142.04,25.74964886]
[1750947252583,0.04,142.05,142.04,55.87181043]
[1750947253896,0.04,142.05,142.04,73.83188522]
[1750947255908,0.04,142.05,142.04,63.6161078]
[1750947256103,0.04,142.05,142.04,73.83188522]
[1750947257191,0.04,142.05,142.04,55.87181043]
[1750947257398,0.04,142.05,142.04,55.44964886]
[1750947257714,0.04,142.05,142.04,55.59181043]
[1750947258286,0.04,142.05,142.04,55.44964886]
[1750947259302,0.04,142.05,142.04,25.52964886]
[1750947260013,0.04,142.05,142.04,6.88]
[1750947260315,1.5995,142.05,142.04,6.88]
[1750947260897,0.04,142.05,142.04,25.52964886]
[1750947261098,0.04,142.05,142.04,25.67181043]
[1750947262296,0.04,142.05,142.04,32.71208077]
[1750947262499,0.04,142.05,142.04,42.92785819]
[1750947263001,0.04,142.05,142.04,49.66828133]
[1750947263204,0.04,142.05,142.04,59.66828133]
[1750947263400,0.04,142.08,142.05,19.07613357]
[1750947263719,0.04,142.08,142.07,29.00758785]
[1750947264721,0.04,142.08,142.07,36.04637154]
[1750947270527,0.04,142.08,142.07,25.83059412]
[1750947270708,0.04,142.08,142.07,36.04637154]
[1750947271801,0.04,142.08,142.07,25.83059412]
[1750947272224,0.04,142.08,142.07,18.79181043]
[1750947275039,0.04,142.08,142.07,25.83059412]
[1750947275330,0.04,142.08,142.07,18.79181043]
[1750947276720,0.04,142.08,142.07,55.47181043]
[1750947277445,0.04,142.08,142.07,72.72637154]
[1750947277810,0.04,142.08,142.07,62.51059412]